[Event "Josef Kupper Memorial 2019"]
[Site "Zurich"]
[Date "2019.08.16"]
[Round "4.13"]
[White "Beerdsen, Thomas"]
[Black "Sutter, Oliver"]
[Result "1/2-1/2"]
[ECO "C11"]
[WhiteElo "2491"]
[BlackElo "2344"]
[Annotator "ChessBase"]
[PlyCount "78"]
[EventDate "2019.08.14"]
[EventType "swiss"]
[EventCountry "SUI"]
[SourceTitle "playchess.com"]
[Source "ChessBase"]
[SourceQuality "1"]
[TimeControl "40/5400+30:1800+30"]

1. e4 {[%emt 0:02:21]} e6 {[%emt 0:00:02]} 2. d4 {[%emt 0:02:33]} d5 {[%emt 0:00:09]} 3. Nc3 {[%emt 0:00:25]} Nf6 {[%emt 0:00:07]} 4. e5 {[%emt 0:00:22]} Nfd7 {[%emt 0:00:06]} 5. f4 {[%emt 0:00:04]} c5 {[%emt 0:00:25]} 6. Nf3 {[%emt 0:00:06]} Nc6 {[%emt 0:00:13]} 7. Be3 {[%emt 0:00:05]} a6 {[%emt 0:00:29]} 8. Qd2 {[%emt 0:00:37]} b5 {[%emt 0:00:09]} 9. dxc5 {[%emt 0:01:04]} Bxc5 {[%emt 0:00:20]} 10. Bd3 {[%emt 0:00:58]} Qb6 {[%emt 0:00:46]} 11. Bf2 {[%emt 0:00:10]} Bxf2+ {[%emt 0:05:42]} 12. Qxf2 {[%emt 0:00:06]} Qxf2+ {[%emt 0:00:11]} 13. Kxf2 {[%emt 0:00:04]} O-O {[%emt 0:03:41]} 14. Rhe1 {[%emt 0:06:43]} f6 {[%emt 0:05:35]} 15. exf6 {[%emt 0:04:15]} Rxf6 {[%emt 0:03:54]} 16. Kg3 {[%emt 0:10:50]} Nc5 {[%emt 0:07:57]} 17. Ne5 {[%emt 0:12:26]} Nxe5 {[%emt 0:04:04]} 18. Rxe5 {[%emt 0:04:35]} Bb7 {[%emt 0:07:04]} 19. Ne2 {[%emt 0:03:27]} Raf8 {[%emt 0:01:49]} 20. h4 {[%emt 0:01:36]} Nd7 {[%emt 0:03:45]} 21. Re3 {[%emt 0:01:55]} Nc5 {[%emt 0:14:42]} 22. Rf1 {[%emt 0:06:38]} h6 {[%emt 0:04:01]} 23. h5 {[%emt 0:05:17]} g5 {[%emt 0:10:57]} 24. hxg6 {[%emt 0:00:26]} Nxd3 {[%emt 0:00:12]} 25. cxd3 {[%emt 0:01:26]} Rxg6+ {[%emt 0:00:11]} 26. Kh2 {[%emt 0:03:23]} d4 {[%emt 0:00:40]} 27. Rg3 {[%emt 0:00:59]} Rxg3 {[%emt 0:00:18]} 28. Kxg3 {[%emt 0:03:29]} Kf7 {[%emt 0:01:46]} 29. Kf2 {[%emt 0:04:09]} e5 {[%emt 0:02:18]} 30. Rh1 {[%emt 0:02:41]} Kg6 {[%emt 0:10:26]} 31. Kg3 {[%emt 0:04:49]} Rg8 {[%emt 0:02:02]} 32. Kf2 {[%emt 0:02:35]} Rf8 {[%emt 0:01:53]} 33. Rc1 {[%emt 0:05:17]} exf4 {[%emt 0:01:57]} 34. Nxd4 {[%emt 0:00:05]} Rc8 {[%emt 0:00:41]} 35. Re1 {[%emt 0:02:16]} Bd5 {[%emt 0:01:48]} 36. a3 {[%emt 0:02:21]} Kf6 {[%emt 0:00:40]} 37. Rh1 {[%emt 0:00:50]} Kg6 {[%emt 0:03:28]} 38. Re1 {[%emt 0:00:19]} Kf6 {[%emt 0:00:05]} 39. Rh1 {[%emt 0:00:04]} Ke5 1/2-1/2

[Event "Josef Kupper Memorial 2019"]
[Site "Zurich"]
[Date "2019.08.16"]
[Round "4.14"]
[White "Habibi, Ali"]
[Black "Harsha Bharathakoti"]
[Result "0-1"]
[ECO "A00"]
[WhiteElo "2186"]
[BlackElo "2489"]
[Annotator "ChessBase"]
[PlyCount "84"]
[EventDate "2019.08.14"]
[EventType "swiss"]
[EventCountry "SUI"]
[SourceTitle "playchess.com"]
[Source "ChessBase"]
[SourceQuality "1"]
[TimeControl "40/5400+30:1800+30"]

1. a3 {[%emt 0:00:00]} d5 {[%emt 0:00:10]} 2. Nf3 {[%emt 0:00:00]} Nf6 {[%emt 0:02:08]} 3. c4 {[%emt 0:00:02]} dxc4 {[%emt 0:06:34]} 4. Qa4+ {[%emt 0:03:33]} Nbd7 {[%emt 0:00:04]} 5. e3 {[%emt 0:02:57]} e6 {[%emt 0:01:04]} 6. Bxc4 {[%emt 0:00:21]} a6 {[%emt 0:00:11]} 7. d4 {[%emt 0:01:36]} Rb8 {[%emt 0:00:32]} 8. Qc2 {[%emt 0:00:24]} b5 {[%emt 0:01:03]} 9. Bd3 {[%emt 0:00:02]} c5 {[%emt 0:01:09]} 10. O-O {[%emt 0:05:09]} Bb7 {[%emt 0:03:05]} 11. Qe2 {[%emt 0:03:00]} Bd6 {[%emt 0:08:08]} 12. Nbd2 {[%emt 0:03:07]} cxd4 {[%emt 0:00:59]} 13. exd4 {[%emt 0:00:32]} O-O {[%emt 0:02:58]} 14. b3 {[%emt 0:00:40]} Qb6 {[%emt 0:07:39]} 15. Bb2 {[%emt 0:03:39]} Nd5 {[%emt 0:05:07]} 16. g3 {[%emt 0:01:10]} N5f6 {[%emt 0:02:38]} 17. Rfc1 {[%emt 0:00:25]} Bd5 {[%emt 0:04:24]} 18. Ng5 {[%emt 0:03:15]} Rfc8 {[%emt 0:09:48]} 19. b4 {[%emt 0:01:54]} Rxc1+ {[%emt 0:10:36]} 20. Rxc1 {[%emt 0:00:06]} a5 {[%emt 0:00:02]} 21. bxa5 {[%emt 0:20:37]} Qxa5 {[%emt 0:02:45]} 22. Nb1 {[%emt 0:08:20]} h6 {[%emt 0:08:38]} 23. Nf3 {[%emt 0:04:49]} Ba8 {[%emt 0:13:31]} 24. Ne5 {[%emt 0:05:50]} b4 {[%emt 0:00:12]} 25. axb4 {[%emt 0:06:41]} Qd5 {[%emt 0:00:21]} 26. f3 {[%emt 0:00:02]} Bxb4 {[%emt 0:00:14]} 27. Bc4 {[%emt 0:03:22]} Qd6 {[%emt 0:00:05]} 28. Rd1 {[%emt 0:01:36]} Qb6 {[%emt 0:02:52]} 29. Nxd7 {[%emt 0:02:01]} Nxd7 {[%emt 0:00:06]} 30. Kg2 {[%emt 0:00:28]} Nf6 {[%emt 0:01:08]} 31. Rd3 {[%emt 0:03:01]} Rd8 {[%emt 0:02:29]} 32. Rb3 {[%emt 0:03:09]} Qa5 {[%emt 0:01:04]} 33. Na3 {[%emt 0:04:10]} Bxa3 {[%emt 0:01:51]} 34. Rxa3 {[%emt 0:00:11]} Qc7 {[%emt 0:01:47]} 35. Rc3 {[%emt 0:02:51]} Qd6 {[%emt 0:00:42]} 36. Ra3 {[%emt 0:03:36]} Bd5 {[%emt 0:00:26]} 37. Bd3 {[%emt 0:00:38]} Rb8 {[%emt 0:00:12]} 38. Bc1 {[%emt 0:00:39]} Qc6 {[%emt 0:00:39]} 39. Be3 {[%emt 0:03:10]} Ng4 {[%emt 0:00:08]} 40. Bf2 {[%emt 0:01:40]} Qc1 {[%emt 0:01:59]} 41. Ra5 {[%emt 0:30:52]} Nxf2 {[%emt 0:30:26]} 42. Qxf2 {[%emt 0:00:23]} Rb2 {[%emt 0:00:00]} 0-1

[Event "Josef Kupper Memorial 2019"]
[Site "Zurich"]
[Date "2019.08.16"]
[Round "4.15"]
[White "Arjun Kalyan"]
[Black "Kiremitciyan, Ari"]
[Result "1-0"]
[ECO "C50"]
[WhiteElo "2482"]
[BlackElo "2276"]
[Annotator "ChessBase"]
[PlyCount "63"]
[EventDate "2019.08.14"]
[EventType "swiss"]
[EventCountry "SUI"]
[SourceTitle "playchess.com"]
[Source "ChessBase"]
[SourceQuality "1"]
[TimeControl "40/5400+30:1800+30"]

1. e4 {[%emt 0:00:00]} e5 {[%emt 0:00:00]} 2. Nf3 {[%emt 0:00:00]} Nc6 {[%emt 0:00:02]} 3. Bc4 {[%emt 0:00:00]} Bc5 {[%emt 0:00:08]} 4. O-O {[%emt 0:00:07]} Nf6 {[%emt 0:00:08]} 5. d3 {[%emt 0:00:05]} O-O {[%emt 0:00:21]} 6. Bg5 {[%emt 0:00:28]} h6 {[%emt 0:00:27]} 7. Bh4 {[%emt 0:00:07]} Be7 {[%emt 0:00:12]} 8. Bg3 {[%emt 0:00:23]} d6 {[%emt 0:00:39]} 9. a4 {[%emt 0:00:09]} Na5 {[%emt 0:09:30]} 10. Ba2 {[%emt 0:00:13]} c5 {[%emt 0:00:05]} 11. c3 {[%emt 0:02:20]} Nc6 {[%emt 0:03:38]} 12. Na3 {[%emt 0:01:54]} Be6 {[%emt 0:04:50]} 13. Nc4 {[%emt 0:03:30]} Qc8 {[%emt 0:14:47]} 14. h3 {[%emt 0:04:07]} Re8 {[%emt 0:04:22]} 15. Re1 {[%emt 0:01:54]} Bf8 {[%emt 0:02:00]} 16. Bh4 {[%emt 0:10:07]} g5 {[%emt 0:10:15]} 17. Bg3 {[%emt 0:00:18]} Qd7 {[%emt 0:04:45]} 18. Nh2 {[%emt 0:08:29]} Rad8 {[%emt 0:05:46]} 19. h4 {[%emt 0:05:30]} Bg7 {[%emt 0:08:05]} 20. hxg5 {[%emt 0:04:10]} hxg5 {[%emt 0:00:01]} 21. Nf3 {[%emt 0:03:14]} Nh7 {[%emt 0:04:22]} 22. Ne3 {[%emt 0:01:25]} Ne7 {[%emt 0:03:33]} 23. Bxe6 {[%emt 0:11:04]} fxe6 {[%emt 0:03:20]} 24. d4 {[%emt 0:04:24]} exd4 {[%emt 0:00:18]} 25. cxd4 {[%emt 0:00:03]} cxd4 {[%emt 0:01:35]} 26. Nxd4 {[%emt 0:00:07]} Bxd4 {[%emt 0:08:02]} 27. Qxd4 {[%emt 0:00:02]} Nc6 {[%emt 0:00:16]} 28. Qd3 {[%emt 0:08:01]} e5 {[%emt 0:06:34]} 29. Nf5 {[%emt 0:03:16]} Re6 {[%emt 0:01:40]} 30. Rad1 {[%emt 0:00:26]} Ne7 {[%emt 0:00:56]} 31. Qb3 {[%emt 0:00:26]} Kh8 {[%emt 0:01:26]} 32. Nxd6 {[%emt 0:00:41]} 1-0

[Event "Josef Kupper Memorial 2019"]
[Site "Zurich"]
[Date "2019.08.16"]
[Round "4.16"]
[White "Krishna C R G"]
[Black "Csajka, Felix"]
[Result "1-0"]
[ECO "D71"]
[WhiteElo "2444"]
[BlackElo "2186"]
[Annotator "NA"]
[PlyCount "77"]
[EventDate "2019.08.14"]
[EventType "swiss"]
[EventCountry "SUI"]
[SourceTitle "playchess.com"]
[Source "ChessBase"]
[SourceQuality "1"]
[TimeControl "40/5400+30:1800+30"]

1. d4 {[%emt 0:06:26]} Nf6 {[%emt 0:00:00]} 2. c4 {[%emt 0:00:17]} g6 {[%emt 0:00:00]} 3. g3 {[%emt 0:00:18]} c6 {[%emt 0:00:19]} 4. Bg2 {[%emt 0:00:23]} d5 {[%emt 0:00:14]} 5. Nd2 {[%emt 0:00:49]} Bg7 {[%emt 0:01:03]} 6. Ngf3 {[%emt 0:00:07]} O-O {[%emt 0:01:15]} 7. O-O {[%emt 0:00:04]} Bf5 {[%emt 0:03:23]} 8. e3 {[%emt 0:22:38]} Nbd7 {[%emt 0:08:36]} 9. Re1 {[%emt 0:02:11]} Re8 {[%emt 0:07:27]} 10. h3 {[%emt 0:13:07]} Ne4 {[%emt 0:17:55]} 11. Nh4 {[%emt 0:19:18]} Nxd2 {[%emt 0:02:30]} 12. Bxd2 {[%emt 0:00:53]} Be6 {[%emt 0:08:42]} 13. cxd5 {[%emt 0:02:08]} cxd5 {[%emt 0:02:26]} 14. Qb3 {[%emt 0:01:14]} Nb6 {[%emt 0:01:13]} 15. Ba5 {[%emt 0:05:01]} Qd6 {[%emt 0:01:14]} 16. Nf3 {[%emt 0:00:02]} Nc4 {[%emt 0:01:08]} 17. Bb4 {[%emt 0:00:08]} Qd7 {[%emt 0:01:09]} 18. Ng5 {[%emt 0:00:23]} b5 {[%emt 0:02:16]} 19. Nxe6 {[%emt 0:01:01]} fxe6 {[%emt 0:02:18]} 20. Rac1 {[%emt 0:15:23]} Rec8 {[%emt 0:01:55]} 21. Red1 {[%emt 0:04:05]} a5 {[%emt 0:01:59]} 22. Be1 {[%emt 0:01:09]} b4 {[%emt 0:01:49]} 23. Rb1 {[%emt 0:02:10]} Rab8 {[%emt 0:03:09]} 24. Qd3 {[%emt 0:00:28]} Nb6 {[%emt 0:02:41]} 25. e4 {[%emt 0:02:15]} dxe4 {[%emt 0:01:11]} 26. Qxe4 {[%emt 0:00:08]} Rc4 {[%emt 0:00:33]} 27. h4 {[%emt 0:00:42]} Qd6 {[%emt 0:01:59]} 28. Bh3 {[%emt 0:00:21]} Rxd4 {[%emt 0:00:41]} 29. Bxe6+ {[%emt 0:00:30]} Kh8 {[%emt 0:00:27]} 30. Rxd4 {[%emt 0:00:02]} Bxd4 {[%emt 0:00:48]} 31. Rd1 {[%emt 0:01:15]} Rd8 {[%emt 0:02:14]} 32. Kg2 {[%emt 0:00:01]} Na4 {[%emt 0:00:42]} 33. Bb3 {[%emt 0:01:01]} Nc5 {[%emt 0:00:33]} 34. Qf3 {[%emt 0:00:23]} e5 {[%emt 0:02:06]} 35. Bc4 {[%emt 0:00:10]} Rf8 {[%emt 0:05:07]} 36. Qe2 {[%emt 0:00:00]} Qc6+ {[%emt 0:03:00]} 37. Kh2 {[%emt 0:00:01]} Ne4 {[%emt 0:05:15]} 38. f4 {[%emt 0:00:01]} Nd6 {[%emt 0:05:10]} 39. Rxd4 {[%emt 0:00:01]} 1-0

[Event "Josef Kupper Memorial 2019"]
[Site "Zurich"]
[Date "2019.08.17"]
[Round "5.9"]
[White "Idani, Pouya"]
[Black "Krishna C R G"]
[Result "1-0"]
[ECO "C11"]
[WhiteElo "2581"]
[BlackElo "2444"]
[Annotator "RC"]
[PlyCount "95"]
[EventDate "2019.08.14"]
[EventType "swiss"]
[EventCountry "SUI"]
[SourceTitle "playchess.com"]
[Source "ChessBase"]
[SourceQuality "1"]
[TimeControl "40/5400+30:1800+30"]

1. e4 {[%emt 0:00:00]} e6 {[%emt 0:00:00]} 2. d4 {[%emt 0:00:00]} d5 {[%emt 0:00:00]} 3. Nc3 {[%emt 0:00:00]} Nf6 {[%emt 0:00:00]} 4. e5 {[%emt 0:00:00]} Nfd7 {[%emt 0:00:00]} 5. f4 {[%emt 0:00:00]} c5 {[%emt 0:00:00]} 6. Nf3 {[%emt 0:00:02]} Nc6 {[%emt 0:00:00]} 7. Be3 {[%emt 0:00:03]} Be7 {[%emt 0:00:02]} 8. Qd2 {[%emt 0:01:03]} O-O {[%emt 0:00:55]} 9. dxc5 {[%emt 0:00:04]} Qa5 {[%emt 0:01:08]} 10. a3 {[%emt 0:00:42]} Nxc5 {[%emt 0:05:50]} 11. O-O-O {[%emt 0:02:38]} Rd8 {[%emt 0:10:37]} 12. Be2 {[%emt 0:14:26]} Bd7 {[%emt 0:10:40]} 13. Kb1 {[%emt 0:07:49]} Rac8 {[%emt 0:09:48]} 14. f5 {[%emt 0:09:09]} Ne4 {[%emt 0:26:37]} 15. Nxe4 {[%emt 0:00:10]} dxe4 {[%emt 0:00:09]} 16. Qxa5 {[%emt 0:00:43]} Nxa5 {[%emt 0:00:02]} 17. f6 {[%emt 0:00:06]} Bxa3 {[%emt 0:11:43]} 18. bxa3 {[%emt 0:06:05]} exf3 {[%emt 0:00:02]} 19. gxf3 {[%emt 0:00:16]} Ba4 {[%emt 0:03:40]} 20. Rxd8+ {[%emt 0:04:33]} Rxd8 {[%emt 0:00:01]} 21. Rg1 {[%emt 0:02:21]} g6 {[%emt 0:00:02]} 22. Rg4 {[%emt 0:07:24]} b5 {[%emt 0:00:25]} 23. Bd3 {[%emt 0:09:10]} Nc6 {[%emt 0:02:12]} 24. Re4 {[%emt 0:00:04]} Rd5 {[%emt 0:04:03]} 25. f4 {[%emt 0:00:45]} a6 {[%emt 0:00:14]} 26. Kc1 {[%emt 0:02:19]} Rd7 {[%emt 0:00:48]} 27. Bc5 {[%emt 0:01:12]} Rd5 {[%emt 0:03:14]} 28. Bd6 {[%emt 0:02:34]} Na5 {[%emt 0:01:50]} 29. Be2 {[%emt 0:05:15]} Nb7 {[%emt 0:02:33]} 30. Be7 {[%emt 0:00:27]} Rd7 {[%emt 0:01:00]} 31. Bf3 {[%emt 0:05:19]} Na5 {[%emt 0:01:09]} 32. Bd6 {[%emt 0:02:56]} Nc4 {[%emt 0:02:42]} 33. Rd4 {[%emt 0:01:04]} Ne3 {[%emt 0:01:17]} 34. Rd3 {[%emt 0:04:05]} Nf5 {[%emt 0:01:21]} 35. Rc3 {[%emt 0:02:03]} Rd8 {[%emt 0:00:38]} 36. Bb7 {[%emt 0:01:11]} h5 {[%emt 0:00:43]} 37. Bxa6 {[%emt 0:01:18]} h4 {[%emt 0:01:17]} 38. Rd3 {[%emt 0:02:56]} Kh7 {[%emt 0:00:36]} 39. Bb7 {[%emt 0:01:06]} Kh6 {[%emt 0:00:41]} 40. Bc5 {[%emt 0:01:48]} Rxd3 {[%emt 0:00:59]} 41. cxd3 {[%emt 0:30:06]} g5 {[%emt 0:01:23]} 42. fxg5+ {[%emt 0:00:00]} Kxg5 {[%emt 0:00:05]} 43. Bc6 {[%emt 0:00:00]} h3 {[%emt 0:01:42]} 44. Be8 {[%emt 0:00:00]} Kg6 {[%emt 0:00:08]} 45. Kd2 {[%emt 0:00:00]} Nh6 {[%emt 0:11:07]} 46. Ke3 {[%emt 0:00:00]} Kf5 {[%emt 0:05:58]} 47. d4 {[%emt 0:00:00]} Kg6 {[%emt 0:10:48]} 48. Ke4 1-0

[Event "Josef Kupper Memorial 2019"]
[Site "Zurich"]
[Date "2019.08.17"]
[Round "5.13"]
[White "Fischer, Daniel"]
[Black "Beerdsen, Thomas"]
[Result "1/2-1/2"]
[ECO "B48"]
[WhiteElo "2288"]
[BlackElo "2491"]
[Annotator "ChessBase"]
[PlyCount "92"]
[EventDate "2019.08.14"]
[EventType "swiss"]
[EventCountry "SUI"]
[SourceTitle "playchess.com"]
[Source "ChessBase"]
[SourceQuality "1"]
[TimeControl "40/5400+30:1800+30"]

1. e4 {[%emt 0:00:00]} c5 {[%emt 0:05:05]} 2. Nf3 {[%emt 0:00:00]} e6 {[%emt 0:00:05]} 3. d4 {[%emt 0:00:00]} cxd4 {[%emt 0:00:04]} 4. Nxd4 {[%emt 0:00:00]} Nc6 {[%emt 0:00:05]} 5. Nc3 {[%emt 0:00:00]} Qc7 {[%emt 0:00:06]} 6. Be3 {[%emt 0:00:00]} a6 {[%emt 0:00:11]} 7. Qd2 {[%emt 0:01:21]} Nf6 {[%emt 0:00:14]} 8. O-O-O {[%emt 0:00:17]} Bb4 {[%emt 0:07:23]} 9. f3 {[%emt 0:00:14]} h5 {[%emt 0:05:15]} 10. Nxc6 {[%emt 0:20:43]} bxc6 {[%emt 0:03:26]} 11. Bf4 {[%emt 0:05:42]} e5 {[%emt 0:04:42]} 12. Bg5 {[%emt 0:01:01]} Qa5 {[%emt 0:12:59]} 13. Bc4 {[%emt 0:03:04]} d6 {[%emt 0:09:50]} 14. Qd3 {[%emt 0:06:22]} Nd7 {[%emt 0:08:14]} 15. a3 {[%emt 0:07:34]} Bc5 {[%emt 0:03:20]} 16. Ne2 {[%emt 0:05:41]} Qa4 {[%emt 0:10:02]} 17. b4 {[%emt 0:09:52]} f6 {[%emt 0:07:05]} 18. bxc5 {[%emt 0:08:47]} fxg5 {[%emt 0:00:20]} 19. cxd6 {[%emt 0:01:05]} Rb8 {[%emt 0:06:00]} 20. Qc3 {[%emt 0:02:06]} Rh6 {[%emt 0:00:55]} 21. h4 {[%emt 0:03:44]} gxh4 {[%emt 0:02:46]} 22. f4 {[%emt 0:02:00]} Rg6 {[%emt 0:08:36]} 23. fxe5 {[%emt 0:01:04]} Nc5 {[%emt 0:00:41]} 24. Nf4 {[%emt 0:03:23]} Nxe4 {[%emt 0:02:01]} 25. Qd3 {[%emt 0:02:27]} Bf5 {[%emt 0:00:08]} 26. d7+ {[%emt 0:00:47]} Kd8 {[%emt 0:00:11]} 27. Nxg6 {[%emt 0:10:00]} Nd6 {[%emt 0:01:06]} 28. Qc3 {[%emt 0:02:38]} Ne4 {[%emt 0:01:57]} 29. Bb3 {[%emt 0:01:56]} Nxc3 {[%emt 0:00:52]} 30. Bxa4 {[%emt 0:00:03]} Bxg6 {[%emt 0:00:13]} 31. Bxc6 {[%emt 0:01:20]} Rb1+ {[%emt 0:00:33]} 32. Kd2 {[%emt 0:00:03]} Rxd1+ {[%emt 0:00:23]} 33. Rxd1 {[%emt 0:00:04]} Nxd1 {[%emt 0:00:05]} 34. Kxd1 {[%emt 0:00:03]} Bf5 {[%emt 0:00:11]} 35. c4 {[%emt 0:01:38]} g5 {[%emt 0:01:47]} 36. Ke2 {[%emt 0:00:26]} h3 {[%emt 0:00:33]} 37. gxh3 {[%emt 0:00:42]} Bxh3 {[%emt 0:00:04]} 38. Kf2 {[%emt 0:00:47]} Bxd7 {[%emt 0:00:27]} 39. Bxd7 {[%emt 0:01:11]} Kxd7 {[%emt 0:00:04]} 40. c5 {[%emt 0:00:04]} h4 {[%emt 0:00:44]} 41. Kf3 {[%emt 0:31:09]} h3 {[%emt 0:30:09]} 42. Kg3 {[%emt 0:00:05]} g4 {[%emt 0:00:05]} 43. Kh2 {[%emt 0:00:33]} Ke6 {[%emt 0:00:23]} 44. c6 {[%emt 0:00:07]} Ke7 {[%emt 0:00:04]} 45. Kg3 {[%emt 0:00:10]} Ke6 {[%emt 0:00:05]} 46. Kh2 {[%emt 0:00:07]} Kd5 1/2-1/2

[Event "Josef Kupper Memorial 2019"]
[Site "Zurich"]
[Date "2019.08.17"]
[Round "5.14"]
[White "Hort, Vlastimil"]
[Black "Florescu, Codrut-Constantin"]
[Result "1/2-1/2"]
[ECO "B23"]
[WhiteElo "2400"]
[BlackElo "2314"]
[Annotator "ChessBase"]
[PlyCount "62"]
[EventDate "2019.08.14"]
[EventType "swiss"]
[EventCountry "SUI"]
[SourceTitle "playchess.com"]
[Source "ChessBase"]
[SourceQuality "1"]
[TimeControl "40/5400+30:1800+30"]

1. e4 {[%emt 0:00:00]} c5 {[%emt 0:00:00]} 2. Nc3 {[%emt 0:00:00]} Nc6 {[%emt 0:00:00]} 3. Nge2 {[%emt 0:00:10]} e6 {[%emt 0:00:15]} 4. g3 {[%emt 0:00:13]} a6 {[%emt 0:00:42]} 5. Bg2 {[%emt 0:00:39]} Qc7 {[%emt 0:00:14]} 6. O-O {[%emt 0:02:03]} Nf6 {[%emt 0:00:19]} 7. a3 {[%emt 0:01:58]} Be7 {[%emt 0:10:16]} 8. d3 {[%emt 0:05:33]} O-O {[%emt 0:00:48]} 9. h3 {[%emt 0:00:51]} Rb8 {[%emt 0:00:26]} 10. g4 {[%emt 0:01:13]} h6 {[%emt 0:08:21]} 11. f4 {[%emt 0:03:19]} d6 {[%emt 0:02:40]} 12. Be3 {[%emt 0:03:48]} b5 {[%emt 0:00:41]} 13. Qd2 {[%emt 0:01:26]} b4 {[%emt 0:07:10]} 14. Nd1 {[%emt 0:03:21]} bxa3 {[%emt 0:03:51]} 15. bxa3 {[%emt 0:02:41]} d5 {[%emt 0:07:23]} 16. g5 {[%emt 0:03:29]} d4 {[%emt 0:00:47]} 17. gxf6 {[%emt 0:02:51]} dxe3 {[%emt 0:00:10]} 18. Nxe3 {[%emt 0:00:08]} Bxf6 {[%emt 0:00:10]} 19. Rab1 {[%emt 0:00:18]} Bd7 {[%emt 0:13:53]} 20. Nc4 {[%emt 0:04:21]} Nd4 {[%emt 0:03:36]} 21. e5 {[%emt 0:02:59]} Be7 {[%emt 0:00:54]} 22. Kh1 {[%emt 0:10:56]} Rxb1 {[%emt 0:02:28]} 23. Rxb1 {[%emt 0:00:16]} Rb8 {[%emt 0:00:04]} 24. Ra1 {[%emt 0:05:14]} Bb5 {[%emt 0:05:51]} 25. Ne3 {[%emt 0:04:17]} f6 {[%emt 0:00:21]} 26. a4 {[%emt 0:01:22]} Bd7 {[%emt 0:07:16]} 27. Nxd4 {[%emt 0:01:48]} cxd4 {[%emt 0:00:06]} 28. Nc4 {[%emt 0:00:09]} f5 {[%emt 0:02:32]} 29. Bf3 {[%emt 0:03:40]} Bc6 {[%emt 0:06:06]} 30. Qg2 {[%emt 0:04:42]} Bxf3 {[%emt 0:00:05]} 31. Qxf3 {[%emt 0:00:01]} Qb7 {[%emt 0:00:09]} 1/2-1/2

[Event "Josef Kupper Memorial 2019"]
[Site "Zurich"]
[Date "2019.08.17"]
[Round "5.15"]
[White "Chandra, Akshat"]
[Black "Csajka, Felix"]
[Result "1-0"]
[ECO "A45"]
[WhiteElo "2528"]
[BlackElo "2186"]
[Annotator "ChessBase"]
[PlyCount "79"]
[EventDate "2019.08.14"]
[EventType "swiss"]
[EventCountry "SUI"]
[SourceTitle "playchess.com"]
[Source "ChessBase"]
[SourceQuality "1"]
[TimeControl "40/5400+30:1800+30"]

1. d4 {[%emt 0:05:02]} Nf6 {[%emt 0:00:00]} 2. Bf4 {[%emt 0:00:14]} g6 {[%emt 0:00:11]} 3. Nc3 {[%emt 0:00:05]} d5 {[%emt 0:00:19]} 4. e3 {[%emt 0:00:06]} Bg7 {[%emt 0:00:18]} 5. h4 {[%emt 0:00:12]} c5 {[%emt 0:01:53]} 6. Nb5 {[%emt 0:00:14]} Na6 {[%emt 0:01:25]} 7. c3 {[%emt 0:00:24]} Qb6 {[%emt 0:02:40]} 8. a4 {[%emt 0:01:24]} c4 {[%emt 0:05:23]} 9. b3 {[%emt 0:02:14]} cxb3 {[%emt 0:00:33]} 10. Qxb3 {[%emt 0:00:46]} Qa5 {[%emt 0:00:21]} 11. Nf3 {[%emt 0:02:35]} Bd7 {[%emt 0:04:15]} 12. Bd3 {[%emt 0:05:27]} Bc6 {[%emt 0:04:47]} 13. O-O {[%emt 0:01:54]} Qd8 {[%emt 0:03:57]} 14. Ne5 {[%emt 0:00:54]} Nd7 {[%emt 0:01:54]} 15. Nxc6 {[%emt 0:01:26]} bxc6 {[%emt 0:00:14]} 16. Nd6+ {[%emt 0:00:33]} exd6 {[%emt 0:00:48]} 17. Bxa6 {[%emt 0:00:06]} O-O {[%emt 0:04:17]} 18. Bxd6 {[%emt 0:05:03]} Qxh4 {[%emt 0:00:52]} 19. Qb7 {[%emt 0:02:32]} Rad8 {[%emt 0:06:13]} 20. Bxf8 {[%emt 0:10:17]} Bxf8 {[%emt 0:00:37]} 21. g3 {[%emt 0:06:10]} Qh3 {[%emt 0:03:20]} 22. Qc7 {[%emt 0:01:23]} Be7 {[%emt 0:01:02]} 23. Rfe1 {[%emt 0:16:31]} Qe6 {[%emt 0:03:59]} 24. Bc8 {[%emt 0:05:51]} h5 {[%emt 0:01:32]} 25. Rab1 {[%emt 0:17:08]} h4 {[%emt 0:01:20]} 26. Bxd7 {[%emt 0:00:52]} Rxd7 {[%emt 0:00:36]} 27. Rb8+ {[%emt 0:01:24]} Kg7 {[%emt 0:03:21]} 28. Qe5+ {[%emt 0:00:05]} Qxe5 {[%emt 0:00:54]} 29. dxe5 {[%emt 0:00:01]} hxg3 {[%emt 0:00:41]} 30. f4 {[%emt 0:00:12]} f6 {[%emt 0:04:03]} 31. Reb1 {[%emt 0:00:43]} fxe5 {[%emt 0:02:03]} 32. R1b7 {[%emt 0:00:42]} Rxb7 {[%emt 0:00:14]} 33. Rxb7 {[%emt 0:00:02]} Kf6 {[%emt 0:00:45]} 34. fxe5+ {[%emt 0:00:12]} Ke6 {[%emt 0:00:16]} 35. Rxa7 {[%emt 0:00:04]} Bc5 {[%emt 0:00:27]} 36. Rb7 {[%emt 0:00:24]} Bxe3+ {[%emt 0:01:53]} 37. Kg2 {[%emt 0:00:02]} c5 {[%emt 0:05:59]} 38. a5 {[%emt 0:00:05]} c4 {[%emt 0:00:15]} 39. a6 {[%emt 0:00:06]} Kxe5 {[%emt 0:01:19]} 40. Re7+ {[%emt 0:00:19]} 1-0

[Event "Josef Kupper Memorial 2019"]
[Site "Zurich"]
[Date "2019.08.17"]
[Round "5.16"]
[White "Chennaoui, Yasin"]
[Black "Tan, Justin"]
[Result "0-1"]
[ECO "A34"]
[WhiteElo "2092"]
[BlackElo "2503"]
[Annotator "ChessBase"]
[PlyCount "61"]
[EventDate "2019.08.14"]
[EventType "swiss"]
[EventCountry "SUI"]
[SourceTitle "playchess.com"]
[Source "ChessBase"]
[SourceQuality "1"]
[TimeControl "40/5400+30:1800+30"]

1. c4 {[%emt 0:00:00]} c5 {[%emt 0:00:39]} 2. Nc3 {[%emt 0:00:00]} g6 {[%emt 0:01:47]} 3. Nf3 {[%emt 0:00:00]} Bg7 {[%emt 0:00:23]} 4. e3 {[%emt 0:00:00]} Nf6 {[%emt 0:00:08]} 5. d4 {[%emt 0:00:02]} O-O {[%emt 0:00:05]} 6. Be2 {[%emt 0:00:15]} cxd4 {[%emt 0:01:35]} 7. exd4 {[%emt 0:01:05]} d5 {[%emt 0:00:44]} 8. cxd5 {[%emt 0:02:49]} Nxd5 {[%emt 0:00:11]} 9. h4 {[%emt 0:00:24]} Bg4 {[%emt 0:15:11]} 10. Qb3 {[%emt 0:07:35]} Nb6 {[%emt 0:03:48]} 11. Be3 {[%emt 0:00:49]} Nc6 {[%emt 0:00:50]} 12. d5 {[%emt 0:03:01]} Bxc3+ {[%emt 0:06:51]} 13. bxc3 {[%emt 0:00:11]} Qxd5 {[%emt 0:00:08]} 14. c4 {[%emt 0:00:32]} Qa5+ {[%emt 0:04:16]} 15. Kf1 {[%emt 0:04:05]} Rad8 {[%emt 0:02:45]} 16. c5 {[%emt 0:21:05]} Nd5 {[%emt 0:02:16]} 17. Bh6 {[%emt 0:00:11]} Rfe8 {[%emt 0:17:13]} 18. h5 {[%emt 0:11:56]} Qc3 {[%emt 0:03:32]} 19. Rb1 {[%emt 0:00:38]} Bxh5 {[%emt 0:10:32]} 20. Rh4 {[%emt 0:04:19]} Bxf3 {[%emt 0:00:53]} 21. Bxf3 {[%emt 0:00:38]} Qf6 {[%emt 0:06:21]} 22. Bxd5 {[%emt 0:03:32]} Qxh4 {[%emt 0:08:52]} 23. Bxf7+ Kh8 24. Be3 {[%emt 0:01:28]} Rf8 {[%emt 0:00:51]} 25. Kg1 {[%emt 0:09:24]} Nd4 {[%emt 0:00:50]} 26. Qc4 {[%emt 0:00:47]} Ne2+ {[%emt 0:03:23]} 27. Kf1 {[%emt 0:00:34]} Ng3+ {[%emt 0:00:51]} 28. fxg3 {[%emt 0:00:28]} Qxc4+ {[%emt 0:00:04]} 29. Ke1 {[%emt 0:00:23]} Rxf7 {[%emt 0:00:10]} 30. Bd4+ {[%emt 0:00:01]} Qxd4 {[%emt 0:00:05]} 31. Rxb7 {[%emt 0:00:07]} 0-1